bitfinex/quotes_ETHUSD_20240922
["timestamp","ask_amount","ask_price","bid_price","bid_amount"]
[1727001060409,2.4382,2582.3,2581.7,0.60695225]
[1727001060410,2.4382,2582.1,2581.7,0.60695225]
[1727001060722,2.4382,2582.1,2581.7,0.96095547]
[1727001060960,2.4382,2582.1,2581.5,0.35400814]
[1727001061252,2.4382,2582.1,2581.4,7.38]
[1727001061253,2.4382,2582.1,2581.4,7.98702179]
[1727001061409,2.4382,2581.9,2581.5,0.35401149]
[1727001062305,2.4382,2581.9,2581.2,0.92019211]
[1727001062306,6.31132,2581.9,2581.2,0.92019211]
[1727001062507,2.4382,2581.8,2581.2,0.35377372]
[1727001062706,2.4382,2581.8,2581.1,0.60710481]
[1727001062959,2.4382,2581.6,2581.1,0.60710481]
[1727001063608,2.4382,2581.6,2580.6,2.3298]
[1727001063802,2.4382,2581.6,2580.8,0.60718347]
[1727001064650,2.4382,2581.5,2580.8,0.60718347]
[1727001065332,2.4382,2581.4,2580.8,0.60718347]
[1727001065508,2.4382,2581.2,2580.8,0.60718347]
[1727001067360,2.4382,2581.2,2580.6,0.40424113]
[1727001067510,2.4382,2581.2,2580.5,0.60724642]
[1727001068150,2.4382,2581.1,2580.5,0.60724642]
[1727001071612,0.08174051,2581.0,2580.5,0.60724642]
[1727001088359,2.3779,2580.9,2580.5,0.60724642]
[1727001088595,2.45950543,2580.9,2580.5,0.60724642]
[1727001091399,2.70545597,2580.9,2580.5,0.60724642]
[1727001094693,2.70545597,2580.9,2580.2,0.40433179]
[1727001096157,2.3779,2580.8,2579.9,7.9873077]
[1727001096491,2.45968335,2580.8,2579.9,0.6073077]
[1727001096701,2.3779,2580.6,2579.9,0.6073077]
[1727001096992,0.08160816,2580.5,2579.9,0.6073077]
[1727001097197,2.3779,2580.4,2579.9,0.6073077]
[1727001097508,2.45944975,2580.4,2579.9,0.6073077]
[1727001099407,2.70539473,2580.4,2579.9,0.6073077]
[1727001105004,2.45944975,2580.4,2579.9,0.6073077]
[1727001109410,2.45944975,2580.4,2579.9,0.96144911]
[1727001109716,2.45944975,2580.4,2579.9,0.6073077]
[1727001134343,2.4984,2580.3,2579.9,0.6073077]
[1727001134651,2.57955316,2580.2,2579.9,0.6073077]
[1727001140579,3.79643509,2580.2,2579.9,0.6073077]
[1727001141077,2.57955316,2580.2,2579.9,0.6073077]
[1727001141258,3.79643509,2580.2,2579.9,0.6073077]
[1727001144113,0.08115316,2580.2,2579.9,3.0742077]
[1727001144269,0.08115316,2580.2,2580.1,2.4669]
[1727001144469,1.21688193,2580.7,2580.1,5.4669]
[1727001144667,0.08162134,2580.6,2580.1,0.07750373]
[1727001144903,0.08162134,2580.6,2580.2,5.4669]
[1727001145103,1.21688193,2580.8,2580.2,5.4669]
[1727001145289,2.3834,2580.9,2580.2,2.4669]
[1727001145290,3.60028193,2580.9,2580.2,2.4669]
[1727001145493,0.0816195,2580.7,2580.2,2.4669]
[1727001145719,1.2986319,2580.8,2580.2,2.4669]
[1727001145933,0.08165722,2580.6,2580.2,2.4669]
[1727001146086,0.08182244,2580.7,2580.2,2.4669]
[1727001146288,0.08168227,2580.5,2580.2,2.4669]
[1727001146520,0.08179043,2580.6,2580.2,2.4669]
[1727001146722,0.0814674,2580.4,2580.2,2.4669]
[1727001146900,3.60028193,2580.9,2580.2,2.4669]
[1727001147104,0.08156038,2580.3,2580.2,2.4669]
[1727001147301,3.60028193,2580.9,2580.2,2.4669]
[1727001147503,0.08157545,2580.3,2580.2,2.4669]
[1727001147977,3.60028193,2580.9,2580.2,2.4669]
[1727001148173,0.08188248,2580.8,2580.2,2.4669]
[1727001151212,2.3834,2580.7,2580.0,2.4669]
[1727001151398,0.0819639,2580.6,2579.9,3.6073077]
[1727001151597,2.3834,2580.6,2579.9,3.6073077]
[1727001151827,0.08181521,2580.5,2579.9,3.6073077]
[1727001152096,2.3834,2580.4,2579.9,0.6073077]
[1727001152314,3.60028193,2580.4,2579.9,0.6073077]
[1727001152516,2.3834,2580.2,2579.9,0.6073077]
[1727001152940,0.08147037,2580.1,2579.9,0.6073077]
[1727001155847,3.60028193,2580.5,2579.9,0.6073077]
[1727001155848,3.60028193,2580.5,2580.0,2.4669]
[1727001156162,0.08133153,2580.4,2580.0,2.4669]
[1727001158567,0.08133153,2580.4,2579.9,0.6073077]
[1727001158874,0.44949288,2580.4,2579.9,0.6073077]
[1727001161333,0.08133153,2580.4,2579.9,0.6073077]
[1727001163899,2.3239,2580.3,2579.9,0.6073077]
[1727001164303,0.08088253,2580.2,2579.9,0.6073077]
[1727001164759,2.3239,2580.3,2579.9,0.6073077]
[1727001164954,0.08076384,2580.1,2579.9,0.6073077]
[1727001165159,2.3239,2580.3,2579.9,0.6073077]
[1727001165397,0.0807205,2580.0,2579.9,0.6073077]
[1727001165902,2.3239,2580.3,2579.9,0.6073077]
[1727001166073,0.08073557,2580.0,2579.9,0.6073077]
[1727001166276,2.3239,2580.3,2579.9,0.6073077]
[1727001166480,0.08086746,2580.2,2579.9,0.6073077]
[1727001166691,2.3239,2580.3,2579.9,0.6073077]
[1727001166890,0.08080905,2580.1,2579.9,0.6073077]
[1727001167088,2.3239,2580.3,2579.9,0.6073077]
[1727001167267,0.08077704,2580.2,2579.9,0.6073077]
[1727001167470,2.3239,2580.3,2579.9,0.6073077]
[1727001167766,0.08079211,2580.2,2579.9,0.6073077]
[1727001168158,2.3239,2580.3,2579.9,0.6073077]
[1727001168360,0.08074877,2580.1,2579.9,0.6073077]
[1727001168604,2.3239,2580.3,2579.9,0.6073077]
[1727001169192,0.08083732,2580.2,2579.9,0.6073077]
[1727001169574,2.3239,2580.3,2579.9,0.6073077]
[1727001170084,0.08085239,2580.2,2579.9,0.6073077]
[1727001170406,2.3239,2580.3,2579.9,0.6073077]
[1727001170577,0.08080905,2580.1,2579.9,0.6073077]
[1727001170775,2.3239,2580.3,2579.9,0.6073077]
[1727001170995,0.08076571,2580.0,2579.9,0.6073077]
[1727001171317,0.08067529,2580.0,2579.9,0.6073077]
[1727001171686,2.3239,2580.3,2579.9,0.6073077]
[1727001171869,0.08073182,2580.2,2579.9,0.6073077]
[1727001172068,2.3239,2580.3,2579.9,0.6073077]
[1727001172315,0.0807469,2580.2,2579.9,0.6073077]
[1727001172707,2.3239,2580.3,2579.9,0.6073077]
[1727001172912,0.08070356,2580.1,2579.9,0.6073077]
[1727001173118,2.3239,2580.3,2579.9,0.6073077]
[1727001173268,3.54078193,2580.6,2580.0,2.3103]
[1727001173469,2.3239,2580.6,2580.0,2.3103]
[1727001173895,3.54078193,2580.6,2580.0,2.3103]
[1727001174991,4.09393269,2580.6,2580.0,2.3103]
[1727001176748,0.08107195,2580.5,2580.0,2.3103]
[1727001182638,2.4591,2580.3,2579.9,0.6073077]
[1727001182854,0.08088106,2580.2,2579.9,0.6073077]
[1727001183135,0.53793722,2580.2,2579.9,0.6073077]
[1727001183542,0.0808528,2580.1,2579.9,0.6073077]
[1727001189733,0.0808528,2580.1,2579.8,0.0381106]
[1727001192152,2.4591,2580.0,2579.8,0.0381106]
[1727001192632,0.08063453,2579.9,2579.8,0.0381106]
[1727001192774,0.33460798,2579.9,2579.8,0.0381106]
[1727001195419,0.08063453,2579.9,2579.8,0.0381106]
[1727001200825,2.38653453,2579.9,2579.8,0.0381106]
[1727001200989,4.00904377,2579.9,2579.8,0.0381106]
[1727001204321,7.88515377,2579.9,2579.8,0.0381106]
[1727001204532,4.00904377,2579.9,2579.8,0.0381106]
[1727001204694,5.38832422,2579.9,2579.8,0.0381106]
[1727001204881,9.26443422,2579.9,2579.8,0.0381106]
[1727001208943,3.76581498,2579.9,2579.8,0.0381106]
[1727001209219,3.6031435,2579.9,2579.8,0.0381106]
[1727001211026,7.4792535,2579.9,2579.8,0.0381106]
[1727001212439,3.6031435,2579.9,2579.8,0.0381106]
[1727001212642,2.38653453,2579.9,2579.8,0.0381106]
[1727001212853,0.08063453,2579.9,2579.8,0.0381106]
[1727001213007,7.39832897,2580.1,2579.8,0.0381106]
[1727001213201,0.95587754,2580.0,2579.8,0.0381106]
[1727001213406,1.03586982,2580.0,2579.8,0.0381106]
[1727001215817,4.91184982,2580.0,2579.8,0.0381106]
[1727001216021,6.12845879,2580.0,2579.8,0.0381106]
[1727001216529,2.25247879,2580.0,2579.8,0.0381106]
[1727001216737,1.0056708,2579.9,2579.8,0.0381106]
[1727001217127,1.08573967,2579.9,2579.8,0.0381106]
[1727001219752,2.30234864,2579.9,2579.8,0.0381106]
[1727001220058,1.08573967,2579.9,2579.8,0.0381106]
[1727001220210,2.30234864,2579.9,2579.8,0.0381106]
[1727001220413,8.63445864,2579.9,2579.8,0.0381106]
[1727001220642,3.54173967,2579.9,2579.8,0.0381106]
[1727001220953,4.75829342,2579.9,2579.8,0.0381106]
[1727001221551,8.63440342,2579.9,2579.8,0.0381106]
[1727001221762,7.41784967,2579.9,2579.8,0.0381106]
[1727001222354,9.04035891,2579.9,2579.8,0.0381106]
[1727001222965,7.41784967,2579.9,2579.8,0.0381106]
[1727001223272,9.04035891,2579.9,2579.8,0.0381106]
[1727001227691,1.08573967,2579.9,2579.8,0.0381106]
[1727001227841,0.08006887,2579.9,2579.8,0.0381106]
[1727001229443,1.21764726,2580.1,2579.8,0.0381106]
[1727001229758,0.08008211,2580.0,2579.8,0.0381106]
[1727001232450,1.29772937,2580.0,2579.8,0.0381106]
[1727001232903,0.08008211,2580.0,2579.8,0.0381106]
[1727001233300,1.29772937,2580.0,2579.8,0.0381106]
[1727001241113,1.29772937,2580.0,2579.9,2.4732]
[1727001241268,0.08008211,2580.0,2579.9,2.4732]
[1727001241803,1.21764726,2580.2,2579.9,2.4732]
[1727001242004,0.08012409,2580.0,2579.9,2.4732]
[1727001242212,1.21764726,2580.2,2579.9,2.4732]
[1727001242392,0.08016876,2580.0,2579.9,2.4732]
[1727001242736,0.08019558,2580.0,2579.9,2.4732]
[1727001242946,1.21764726,2580.3,2579.9,2.4732]
[1727001243094,1.21764726,2580.5,2579.9,2.4732]
[1727001243493,0.07774335,2580.4,2579.9,2.4732]
[1727001243791,1.21764726,2580.6,2579.9,2.4732]
[1727001243985,0.07772389,2580.3,2579.9,2.4732]
[1727001244190,1.21764726,2580.6,2579.9,2.4732]
[1727001244442,0.07760777,2580.2,2579.9,2.4732]
[1727001244851,1.21764726,2580.6,2579.9,2.4732]
[1727001244852,1.21764726,2580.5,2579.9,2.4732]
[1727001245174,0.28401565,2580.4,2579.9,2.4732]
[1727001245334,3.56114726,2580.5,2579.9,2.4732]
[1727001245536,0.07772534,2580.4,2579.9,2.4732]
[1727001246635,0.07772534,2580.4,2579.8,0.0381106]
[1727001246636,2.3435,2580.3,2579.8,0.0381106]
[1727001246948,0.0778633,2580.2,2579.8,0.0381106]
[1727001247095,0.37167359,2580.2,2579.8,0.0381106]
[1727001247294,1.58932085,2580.2,2579.8,0.0381106]
[1727001247530,3.62849087,2580.1,2579.8,0.0381106]
[1727001249239,1.21764726,2580.0,2579.8,0.0381106]
[1727001249742,0.07796052,2579.9,2579.8,0.0381106]
[1727001250047,0.4408013,2579.9,2579.8,0.0381106]
[1727001253755,1.65844856,2579.9,2579.8,0.0381106]
[1727001254863,0.4408013,2579.9,2579.8,0.0381106]
[1727001256104,1.65844856,2579.9,2579.8,0.0381106]
[1727001256817,0.4408013,2579.9,2579.8,0.0381106]
[1727001257017,2.7736013,2579.9,2579.8,0.0381106]
[1727001257187,4.39611054,2579.9,2579.8,0.0381106]
[1727001267293,8.27222054,2579.9,2579.8,0.0381106]
[1727001267508,8.6816408,2579.9,2579.8,0.0381106]
[1727001268194,8.68169811,2579.9,2579.8,0.0381106]
[1727001270408,4.39905878,2579.9,2579.8,0.0381106]
[1727001271090,8.27516878,2579.9,2579.8,0.0381106]
[1727001271290,6.6497113,2579.9,2579.8,0.0381106]
[1727001274145,8.27524734,2579.9,2579.8,0.0381106]
[1727001274307,8.27524696,2579.9,2579.8,0.0381106]
[1727001274511,2.06633696,2579.9,2579.8,0.0381106]
[1727001274820,1.29701196,2579.9,2579.8,0.0381106]
[1727001284744,1.70349618,2579.9,2579.8,0.0381106]
[1727001286934,0.07796052,2579.9,2579.8,0.0381106]
[1727001287248,1.29707243,2579.9,2579.8,0.0381106]
[1727001289008,0.07796052,2579.9,2579.8,0.0381106]
[1727001289213,2.46463689,2579.9,2579.8,0.0381106]
[1727001289426,4.81173689,2579.9,2579.8,0.0381106]
[1727001289627,3.18620123,2579.9,2579.8,0.0381106]
[1727001290513,5.21814212,2579.9,2579.8,0.0381106]
[1727001292648,3.18620123,2579.9,2579.8,0.0381106]
[1727001300584,0.07796052,2579.9,2579.8,0.0381106]
[1727001300886,1.22130047,2579.9,2579.8,2.3650106]
[1727001301049,0.07395,2579.9,2579.8,2.3650106]
[1727001301435,1.22130047,2580.1,2579.8,2.3650106]
[1727001301655,0.0742377,2579.9,2579.8,2.3650106]
[1727001301958,0.07433074,2579.9,2579.8,2.3650106]
[1727001303369,1.22130047,2580.1,2579.8,2.3650106]
[1727001303846,0.07453099,2580.0,2579.8,2.3650106]
[1727001305041,1.22130047,2580.2,2579.8,2.3650106]
[1727001305241,0.07442403,2579.9,2579.8,2.3650106]
[1727001305466,1.22130047,2580.2,2579.8,2.3650106]
[1727001305807,1.22130047,2580.3,2579.8,2.3650106]
[1727001305959,0.07471977,2580.2,2579.8,2.3650106]
[1727001306165,1.22130047,2580.3,2579.8,2.3650106]
[1727001306361,0.07473107,2580.2,2579.8,2.3650106]
[1727001306578,1.22130047,2580.3,2579.8,2.3650106]
[1727001306775,0.07473107,2580.2,2579.8,2.3650106]
[1727001306979,1.22130047,2580.3,2579.8,2.3650106]
[1727001307275,0.07473107,2580.2,2579.8,2.3650106]
[1727001307705,1.22130047,2580.3,2579.8,2.3650106]
[1727001307919,0.07472164,2580.1,2579.8,2.3650106]
[1727001308071,0.07468718,2580.2,2579.8,2.3650106]
[1727001308263,0.07449501,2580.0,2579.8,2.3650106]
[1727001308459,1.22130047,2580.5,2579.8,2.3650106]
[1727001308978,0.07487042,2580.4,2579.8,2.3650106]
[1727001311278,1.22130047,2580.6,2579.9,2.51661373]
[1727001311480,0.07490702,2580.3,2579.9,2.4391]
[1727001311674,1.22130047,2580.7,2579.9,2.4391]
[1727001311876,0.07487204,2580.2,2579.9,2.4391]
[1727001312066,1.22130047,2580.8,2579.9,2.4391]
[1727001312505,0.0752021,2580.7,2579.9,2.4391]
[1727001314903,1.22130047,2580.9,2579.9,2.4391]
[1727001315102,0.07511359,2580.6,2579.9,2.4391]
[1727001315396,0.07508533,2580.5,2579.9,2.51660779]
[1727001315712,1.22130047,2580.9,2579.9,2.51660779]
[1727001315914,0.07500014,2580.4,2579.9,2.51660779]
[1727001316225,0.07503,2580.3,2579.9,2.51660779]
[1727001316424,1.22130047,2580.9,2579.9,2.51660779]
[1727001316631,0.07539513,2580.8,2580.0,3.0]
[1727001316800,0.07539513,2580.8,2580.0,2.4391]
[1727001317002,1.22130047,2581.0,2580.1,2.4391]
[1727001317215,0.07539324,2580.9,2580.1,2.4391]
[1727001317432,0.07539324,2580.9,2580.2,2.3126]
[1727001320401,0.07539324,2580.9,2579.8,3.0381106]
[1727001320402,0.07539324,2580.9,2580.4,2.3126]
[1727001320647,2.3334,2581.3,2580.4,2.3126]
[1727001320890,0.07289129,2580.8,2580.5,2.39009486]
[1727001321086,2.3334,2581.5,2580.5,2.39009486]
[1727001321285,0.07287139,2580.7,2580.5,2.39009486]
[1727001321482,2.3334,2581.5,2580.5,2.39009486]
[1727001322091,0.07324764,2581.4,2580.5,2.39009486]
[1727001326893,2.25664764,2581.5,2580.5,2.39009486]
[1727001327104,0.07086779,2581.3,2580.5,2.39009486]
[1727001327401,0.0708245,2581.2,2580.5,2.39009486]
[1727001327605,2.25664764,2581.5,2580.5,2.39009486]
[1727001327805,0.07095626,2581.4,2580.5,2.39009486]
[1727001328925,0.07095626,2581.4,2580.5,2.3126]
[1727001332566,0.07095626,2581.4,2580.6,0.07749052]
[1727001332727,0.07095626,2581.4,2580.7,2.3126]
[1727001333093,0.07095626,2581.4,2580.8,2.3126]
[1727001333423,2.3334,2581.7,2580.8,2.3126]
[1727001333649,0.0710127,2581.6,2580.8,2.3126]
[1727001345920,1.29231317,2581.6,2580.8,2.3126]
[1727001346938,0.0710127,2581.6,2580.8,2.3126]
[1727001351655,1.29231317,2581.6,2580.8,2.3126]
[1727001352022,0.0710127,2581.6,2580.8,2.3126]
[1727001352217,0.87162213,2581.6,2580.8,2.3126]
[1727001352457,2.0929226,2581.6,2580.8,2.3126]
[1727001352961,0.87162213,2581.6,2580.8,2.3126]
[1727001353134,0.0710127,2581.6,2580.8,2.3126]
[1727001353754,1.29231317,2581.6,2580.8,2.3126]
[1727001356334,0.0710127,2581.6,2580.8,2.3126]
[1727001356522,1.29231317,2581.6,2580.8,2.3126]
[1727001359275,1.22130047,2581.5,2580.8,2.3126]
[1727001359425,1.29231317,2581.6,2580.8,2.3126]
[1727001359628,1.22130047,2581.5,2580.8,2.3126]
[1727001359862,0.07119559,2581.4,2580.8,2.3126]
[1727001362568,1.29249606,2581.4,2580.8,2.3126]
[1727001363891,1.29249606,2581.4,2580.5,0.07748625]
[1727001363892,0.07119559,2581.4,2581.1,0.55]
[1727001364204,0.07119559,2581.4,2581.3,2.4029]
[1727001364374,1.22130047,2582.0,2581.3,2.4029]
[1727001364561,0.06410282,2581.4,2581.3,5.9529]
[1727001364879,1.22130047,2582.1,2581.5,2.4029]
[1727001365251,0.06446791,2582.0,2581.5,2.4029]
[1727001365453,1.22130047,2582.2,2581.5,2.4029]
[1727001365896,0.06454129,2582.1,2581.5,2.4029]
[1727001366265,1.28584176,2582.1,2581.5,2.4029]
[1727001366599,0.06454129,2582.1,2581.5,2.4029]
[1727001367166,1.28584176,2582.1,2581.5,2.4029]
[1727001367390,1.22130047,2582.0,2581.5,2.4029]
[1727001367558,1.22130047,2581.7,2581.2,2.4029]
[1727001367769,1.22130047,2581.5,2581.2,2.4029]
[1727001368270,0.06405763,2581.4,2581.2,2.4029]
[1727001368453,1.2853581,2581.4,2581.2,2.4029]
[1727001369086,0.06405763,2581.4,2580.9,2.4029]
[1727001369286,1.2853581,2581.4,2580.9,2.4029]
[1727001373902,2.3873,2581.3,2580.7,2.4029]
[1727001374214,3.60860047,2581.3,2580.7,2.4029]
[1727001374393,0.06391306,2581.2,2580.7,2.4029]
[1727001374708,3.60860047,2581.1,2580.4,2.4029]
[1727001374915,1.22130047,2581.0,2580.4,2.4029]
[1727001375213,1.28496284,2581.0,2580.4,2.4029]
[1727001376294,0.06366237,2581.0,2580.4,2.4029]
[1727001384732,0.43088865,2581.0,2580.4,2.4029]
[1727001384900,2.3781,2580.8,2580.2,2.83167192]
[1727001385099,3.59940047,2580.8,2580.0,2.4272]
[1727001385325,2.44119773,2580.7,2579.8,0.0381106]
[1727001385487,3.13182682,2580.6,2579.8,0.0381106]
[1727001385686,2.3781,2580.4,2579.8,0.0381106]
[1727001385913,0.0630991,2580.3,2579.8,0.0381106]
[1727001386391,0.0630991,2580.3,2579.8,3.0381106]
[1727001387389,0.0630991,2580.3,2579.8,0.0381106]
[1727001391695,0.0630991,2580.3,2579.9,2.50471414]
[1727001392189,2.3781,2580.6,2579.9,2.50471414]
[1727001392392,0.06262081,2580.2,2579.9,2.50471414]
[1727001392718,0.0625624,2580.1,2579.9,2.50471414]
[1727001393227,2.3781,2580.6,2579.9,2.4272]
[1727001393791,0.06270295,2580.5,2579.9,2.4272]
[1727001400105,2.3018,2580.4,2579.8,0.64548611]
[1727001400496,0.06273294,2580.3,2579.8,0.64548611]
[1727001406263,0.06273294,2580.3,2579.8,0.72300008]
[1727001407589,0.06273294,2580.3,2579.8,3.72300008]
[1727001408351,0.06273294,2580.3,2579.9,2.3296]
[1727001408555,0.06273294,2580.3,2580.0,0.07750765]
[1727001410253,0.06273294,2580.3,2579.8,3.64548611]
[1727001412255,2.3713,2580.2,2579.8,3.64548611]
[1727001412558,0.06288396,2580.1,2579.8,3.64548611]
[1727001413096,2.3713,2580.2,2579.8,3.64548611]
[1727001413301,0.06282368,2580.1,2579.8,3.64548611]
[1727001415467,0.06282368,2580.1,2579.8,0.64548611]
[1727001415669,2.3713,2580.2,2579.8,0.64548611]
[1727001415973,0.0626972,2580.1,2579.8,0.64548611]
[1727001418503,2.3713,2580.2,2579.8,0.64548611]
[1727001418666,0.06275822,2580.1,2579.8,0.64548611]
[1727001419278,0.06275822,2580.1,2579.8,0.99554294]
[1727001419486,0.06275822,2580.1,2579.8,0.64548611]
[1727001419796,0.06275822,2580.1,2579.8,0.99554294]
[1727001420491,0.06275822,2580.1,2579.9,0.35005683]
[1727001421076,0.06275822,2580.1,2579.9,2.74565683]
[1727001421284,2.3598,2580.4,2580.0,0.07750812]
[1727001421613,0.06286039,2580.3,2580.0,0.42756495]
[1727001421794,0.06286039,2580.3,2580.0,0.07750812]
[1727001422171,0.06286039,2580.3,2580.0,0.42790228]
[1727001423668,0.06286039,2580.3,2579.9,2.3956]
[1727001423869,0.06286039,2580.3,2580.0,0.35048102]
[1727001424080,0.06286039,2580.3,2579.9,2.3956]
[1727001424307,0.06286039,2580.3,2580.0,0.35049074]
[1727001424504,0.06286039,2580.3,2580.1,0.35049074]
[1727001424809,0.06286039,2580.3,2580.0,0.35049074]
[1727001424978,0.06286039,2580.3,2580.1,0.35049074]
[1727001425183,0.06286039,2580.3,2580.2,0.35051694]
[1727001425382,2.3598,2580.6,2580.2,0.35051694]
[1727001425684,0.06291325,2580.5,2580.3,0.35051694]
[1727001425909,0.06291325,2580.5,2580.4,0.35051694]
[1727001426309,0.06285298,2580.5,2580.4,0.35051694]
[1727001426468,2.3598,2580.8,2580.4,0.35051694]
[1727001426669,2.3598,2580.8,2580.2,2.47309877]
[1727001427010,0.06293677,2580.7,2580.3,0.35058837]
[1727001427198,2.3598,2580.8,2580.4,0.35058837]
[1727001427508,0.06290851,2580.6,2580.2,2.3956]
[1727001427709,2.3598,2580.8,2580.3,0.35062901]
[1727001427919,0.06285012,2580.5,2580.3,0.35062901]
[1727001428071,3.58110047,2580.8,2580.3,0.35062901]
[1727001428272,0.06193345,2580.4,2580.2,2.3956]
[1727001428696,0.06187505,2580.3,2580.2,2.3956]
[1727001429104,3.58110047,2580.8,2580.2,2.74627317]
[1727001429295,3.58110047,2580.8,2580.3,0.35067317]
[1727001429615,0.06206343,2580.7,2580.4,0.35067317]
[1727001429829,2.88696866,2580.7,2580.2,0.56101403]
[1727001430124,2.3598,2580.5,2580.3,0.35072426]
[1727001430284,2.3598,2580.5,2580.1,0.56101403]
[1727001430485,0.06205011,2580.4,2580.2,0.35082246]
[1727001430796,1.22130047,2580.6,2580.1,0.56101403]
[1727001430797,2.3598,2580.3,2580.1,0.56101403]
[1727001430999,2.42176829,2580.3,2580.2,0.35083637]
[1727001431589,2.42176829,2580.3,2579.9,7.38]
[1727001432200,2.42176829,2580.3,2580.2,0.35083716]
[1727001432695,2.42176829,2580.3,2580.0,0.91220382]
[1727001432901,2.42176829,2580.3,2580.1,0.35084762]
[1727001433099,2.42176829,2580.3,2580.2,0.35084762]
[1727001434421,2.78607517,2580.3,2579.9,0.5613562]
[1727001434735,2.78607517,2580.3,2579.8,3.64548611]
[1727001434736,2.78607517,2580.3,2579.8,0.0381106]
[1727001434886,2.78607517,2580.3,2579.9,0.56139244]
[1727001435094,2.78607517,2580.3,2580.0,0.35087545]
[1727001435325,2.3598,2580.2,2580.0,0.35087545]
[1727001435628,0.0617774,2580.1,2579.8,0.0381106]
[1727001435792,0.0617774,2580.1,2579.9,0.350875]
[1727001436125,0.0617774,2580.1,2580.0,0.350875]
[1727001436886,2.4215774,2580.1,2580.0,0.350875]
[1727001437923,2.4215774,2580.1,2579.8,0.0381106]
[1727001438549,2.4215774,2580.1,2580.0,0.35086273]
[1727001439651,2.4215774,2580.1,2579.8,0.0381106]
[1727001439834,2.4215774,2580.1,2579.9,0.35084529]
[1727001440038,2.4215774,2580.1,2580.0,0.35084529]
[1727001440354,2.4215774,2580.1,2580.0,0.35084796]
[1727001440949,2.4215774,2580.1,2579.8,0.0381106]
[1727001441243,2.4215774,2580.1,2579.9,0.35083893]
[1727001441726,2.4215774,2580.1,2580.0,0.35083893]
[1727001448155,2.4215774,2580.1,2580.0,0.35080809]
[1727001448660,2.4215774,2580.1,2580.0,0.70161948]
[1727001449526,0.0617774,2580.1,2580.0,0.70161948]
[1727001449727,2.271,2580.3,2580.0,0.70161948]
[1727001449924,0.06177728,2580.2,2580.0,0.35080809]
[1727001450225,2.271,2580.3,2580.0,0.35080809]
[1727001450871,0.06180743,2580.2,2580.0,0.35080809]
[1727001451155,2.271,2580.3,2580.0,0.35080809]
[1727001451534,0.0618225,2580.2,2580.0,0.35080809]
[1727001451737,2.271,2580.3,2580.0,0.35080809]
[1727001452059,0.0618225,2580.2,2580.0,0.35080809]
[1727001452571,2.271,2580.3,2580.1,0.35079311]
[1727001452888,2.271,2580.3,2580.0,0.35080809]
[1727001453083,2.271,2580.3,2580.1,0.35077672]
[1727001453226,2.271,2580.3,2579.9,0.56129823]
[1727001453868,2.271,2580.3,2580.0,0.3507812]
[1727001454065,2.271,2580.3,2580.1,0.3507812]
[1727001454241,2.271,2580.3,2579.8,0.0381106]
[1727001454570,2.271,2580.3,2579.9,0.56125564]
[1727001454726,2.271,2580.3,2580.0,0.35078568]
[1727001454927,2.271,2580.3,2580.1,0.35078568]
[1727001455248,2.271,2580.3,2579.8,0.59936624]
[1727001455568,2.271,2580.3,2579.9,0.35079271]
[1727001455726,2.271,2580.3,2580.0,0.35079271]
[1727001456021,2.271,2580.3,2579.8,0.59936624]
[1727001456222,2.271,2580.3,2579.9,0.35079346]
[1727001456422,2.271,2580.3,2580.0,0.35079346]
[1727001456682,2.271,2580.3,2580.1,0.35079346]
[1727001456825,2.271,2580.3,2579.9,0.56125564]
[1727001457025,2.271,2580.3,2580.0,0.35078842]
[1727001457329,2.271,2580.3,2580.1,0.35078842]
[1727001457562,2.271,2580.3,2579.9,0.56125564]
[1727001458050,2.271,2580.3,2579.8,0.0381106]
[1727001458248,2.271,2580.3,2579.9,0.56125398]
[1727001458461,2.271,2580.3,2580.0,0.35078591]
[1727001458636,2.271,2580.3,2580.1,0.35078591]
[1727001458838,2.271,2580.3,2579.9,0.56125398]
[1727001459038,2.271,2580.3,2580.0,0.35078133]
[1727001459263,2.271,2580.3,2580.1,0.35078133]
[1727001459568,2.271,2580.3,2580.2,0.35078133]
[1727001461154,2.271,2580.3,2579.8,0.0381106]
[1727001461753,0.0618014,2580.2,2579.9,0.56124235]
[1727001461964,2.271,2580.3,2579.9,1.12248939]
[1727001462166,2.271,2580.3,2579.9,1.47326879]
[1727001462377,0.06174111,2580.2,2579.9,1.47326879]
[1727001462584,0.06174111,2580.2,2580.0,0.3507794]
[1727001462878,0.06169777,2580.1,2580.0,0.3507794]
[1727001463083,2.271,2580.3,2579.9,0.56124235]
[1727001463242,0.06171284,2580.1,2579.9,0.56124235]
[1727001463442,2.271,2580.3,2579.9,0.56124235]
[1727001463652,0.06166949,2580.0,2579.9,0.56124235]
[1727001463962,2.271,2580.3,2579.9,0.56124235]
[1727001464162,0.06166949,2580.0,2579.9,0.56124235]
[1727001464371,0.06168456,2580.0,2579.9,0.56124235]
[1727001464886,0.06168456,2580.0,2579.8,0.0381106]
[1727001465186,2.271,2580.3,2579.9,0.35077748]
[1727001466086,2.271,2580.3,2580.0,0.35077748]
[1727001466273,2.271,2580.3,2580.0,0.35078294]
[1727001466673,2.271,2580.3,2580.1,0.35078294]
[1727001466873,2.271,2580.3,2579.8,0.0381106]
[1727001467082,2.271,2580.3,2579.9,0.35078998]
[1727001467381,2.271,2580.3,2580.0,0.35078998]
[1727001467793,2.271,2580.3,2580.1,0.35078998]
[1727001467947,2.271,2580.3,2579.8,0.0381106]
[1727001468287,2.271,2580.3,2579.9,0.35079073]
[1727001468516,2.271,2580.3,2580.0,0.35079073]
[1727001468692,2.271,2580.3,2580.1,0.35079073]
[1727001468986,2.271,2580.3,2579.8,0.0381106]
[1727001469194,2.271,2580.3,2579.9,0.3507919]
[1727001469550,2.271,2580.3,2579.8,0.0381106]
[1727001469749,2.271,2580.3,2579.9,0.35078598]
[1727001470192,2.271,2580.3,2580.0,0.35078598]
[1727001470499,2.271,2580.3,2580.1,0.35078598]
[1727001470685,2.271,2580.3,2579.8,0.0381106]
[1727001470893,2.271,2580.3,2579.8,0.11562629]
[1727001471051,2.271,2580.3,2579.9,2.2675]
[1727001476580,0.06173355,2580.2,2579.9,2.2675]
[1727001476782,2.271,2580.3,2579.9,2.2675]
[1727001476993,0.06173355,2580.2,2579.9,2.2675]
[1727001477215,2.271,2580.3,2579.9,2.2675]
[1727001477419,0.06161485,2580.1,2579.9,2.2675]
[1727001477727,2.271,2580.3,2579.9,2.2675]
[1727001478328,0.06170341,2580.2,2579.9,2.2675]
[1727001478700,2.271,2580.3,2579.9,2.2675]
[1727001478885,0.06166007,2580.1,2579.9,2.2675]
[1727001479087,2.271,2580.3,2579.9,2.34501049]